Cogmind - Beta 15 @@@ ROGUE MODE // 2025.07.26 @ 16:39:32 Player: chebyrekser Result: Destroyed by G-34 Mercenary with Small Laser Performance ------------- Evolutions (0) 0 Regions Visited (3) 600 Robots Destroyed (30) 150 Value Destroyed (634) 634 Prototype IDs (0) 0 Alien Tech Used (0) 0 Bonus (0) 0 TOTAL SCORE: 1384 Bonus ------- None Cogmind --------- Core Integrity 0/250 Matter 277/300 Energy 255/265 System Corruption 0% Temperature Cool (66) Movement Treading (320) Ox2 Location -9/Recycling Parts ------- > --- POWER (1) -------- Improved Ion Engine > --- PROPULSION (2) --- Light Treads > --- UTILITY (2) ------ High-capacity Storage Unit Seismic Detector > --- WEAPON (2) ------- Medium Laser > --- INVENTORY (20) --- Subdweller Power Source Subdweller Power Source Subdweller Machine Gun Ripper Peak State ------------ > --- POWER ------------ Ion Engine > --- PROPULSION ------- Light Treads Light Treads > --- UTILITY ---------- High-capacity Storage Unit Seismic Detector > --- WEAPON ----------- EM Pulse Gun Ripper > --- INVENTORY -------- Subdweller Power Source Subdweller Power Source Medium Laser Subdweller Machine Gun Subdweller Machine Gun SUBCON Basin [Rating: 28] Favorites ----------- Power Light Ion Engine Engine Light Ion Engine Propulsion Light Treads Treads Light Treads Utility High-capacity Storage Unit Device Seismic Detector Storage High-capacity Storage Unit Protection Core Shielding Weapon Medium Laser Energy Gun Medium Laser Ballistic Gun Assault Rifle Ballistic Cannon Light Cannon Launcher Grenade Launcher Special Weapon Mining Laser Slashing Weapon Ripper Build | -11 -10 -10 -9 ------- Run | Yrd Mat Sub Rec Slots Evolved . | . . . . Power . | . . . . Propulsion . | . . . . Utility . | . . . . Weapon . | . . . . Parts Attached 24 | 7 5 9 3 Power 3 | 1 . 1 1 Engine 3 | 1 . 1 1 Core . | . . . . Reactor . | . . . . Propulsion 5 | 2 . 2 1 Treads 5 | 2 . 2 1 Leg . | . . . . Wheel . | . . . . Hover . | . . . . Flight . | . . . . Utility 7 | 2 2 3 . Device 4 | 1 1 2 . Storage 2 | 1 1 . . Processor . | . . . . Hackware . | . . . . Protection 1 | . . 1 . Artifact . | . . . . Weapon 9 | 2 3 3 1 Energy Gun 3 | 1 . 2 . Energy Cannon . | . . . . Ballistic Gun 2 | 1 . . 1 Ballistic Cannon 1 | . 1 . . Launcher 1 | . 1 . . Special Weapon 1 | . 1 . . Impact Weapon . | . . . . Slashing Weapon 1 | . . 1 . Piercing Weapon . | . . . . Special Melee Weapon . | . . . . Unidentified Prototypes . | . . . . Parts Lost 8 | . 1 4 3 Power 1 | . . 1 . Propulsion 3 | . . 2 1 Utility 1 | . 1 . . Weapon 3 | . . 1 2 Highest Loss Streak 3 | . 1 1 3 To Critical Strikes . | . . . . Average Backups 12 | 1 13 15 4 Power 2 | . 2 3 2 Propulsion 1 | . 2 1 . Utility 4 | . 4 5 . Weapon 4 | . 4 4 2 Tool/Special . | . . . . Unused Backups 12 | 1 . 8 3 Power 5 | . . 3 2 Propulsion 2 | 1 . 1 . Utility 3 | . . 3 . Weapon 2 | . . 1 1 Tool/Special . | . . . . Average Slot Usage (%) 97 | . 94 99 100 Engine 13 | . 14 13 14 Treads 28 | . 28 28 28 Device 11 | . 8 12 14 Storage 14 | . 14 14 14 Energy Gun 17 | . 14 19 26 Ballistic Gun 4 | . 10 . . Ballistic Cannon 3 | . . 6 . Special Weapon 1 | . 3 . . Peak Build Rating 28 | 7 8 28 28 Average Rating 9 | 2 7 11 25 On Entrance 10 | . 7 8 28 Naked Turns . | . . . . Heaviest Build 54 | 13 49 52 54 Greatest Support 40 | 40 40 40 40 Greatest Overweight (x) 1 | . 1 1 1 Average Overweight (x) . | . . 1 1 Largest Inventory Capacity 20 | 8 20 20 20 Average Capacity 18 | 6 18 20 20 Most Carried 20 | 5 18 20 20 Average Carried 14 | 1 13 17 19 Final Capacity 20 | 8 20 20 20 Final Carried 20 | 4 17 20 4 Class Distribution -------------------- 100% | Mutant Dominant Class ---------------- Mutant | -10/Materials Mutant | -10/Subcaves Mutant | -9/Recycling Resources | -11 -10 -10 -9 ----------- Run | Yrd Mat Sub Rec Matter Collected 925 | 304 201 366 54 Remotely . | . . . . Salvage Created 878 | 122 489 213 54 Parts 53 | 11 23 16 3 Haulers Intercepted 2 | . 2 . . Recyclers Shooed 3 | 1 2 . . Parts Field Recycled . | . . . . Retrieved Matter . | . . . . Parts Self-Destructed 12 | . . 12 . Prevented . | . . . . Kills | -11 -10 -10 -9 ------- Run | Yrd Mat Sub Rec Combat Hostiles Destroyed 19 | . 9 9 1 Guns 10 | . 6 3 1 AOE 9 | . 3 6 . Classes Destroyed 10 | 2 5 2 1 Builder 1 | . 1 . . Tunneler 3 | 3 . . . Hauler 2 | . 2 . . Recycler 2 | 1 1 . . Turret 2 | . . 2 . Watcher 1 | . 1 . . Swarmer 8 | . 2 6 . Grunt 7 | . 7 . . Sentry 1 | . . . 1 Subdweller 3 | . . 3 . Best Kill Streak 4 | 4 4 3 1 Combat Bots Only 4 | . 4 3 1 Max Kills in Single Turn 2 | 1 2 2 1 Gunslinging 1 | . 1 . . Exploded 2 | . 2 2 . Melee . | . . . . Uniques/NPCs Destroyed . | . . . . Combat | -11 -10 -10 -9 -------- Run | Yrd Mat Sub Rec Hostile Shots Fired 151 | . 51 67 33 Missed 46 | . 13 27 6 Hits 105 | . 38 40 27 Melee 7 | . . . 7 Projectile 98 | . 38 40 20 Critical Strikes 2 | . . 1 1 Damage Taken 1359 | . 443 445 471 Core 259 | . 80 59 120 Absorbed by Shields . | . . . . Redirected to Shielding 4 | . . 4 . Core Remaining (%) 100 | 100 . . . Volleys Fired 124 | 13 66 37 8 Largest 2 | 2 2 2 2 Hottest 100 | 70 100 90 90 Shots Fired 198 | 26 108 49 15 Gun 151 | 26 84 26 15 Cannon . | . . . . Launcher 26 | . 3 23 . Special 21 | . 21 . . Kinetic 59 | 13 42 . 4 Thermal 98 | 13 63 14 8 Explosive 26 | . 3 23 . Electromagnetic 15 | . . 12 3 Robot Hit Streak 16 | 5 10 16 6 Robot Miss Streak 4 | 2 4 1 1 Penetration Max . | . . . . Secondary Targets 1 | . 1 . . Max Gunslinging Chain 1 | . 1 . . Shots Hit Robots 106 | 17 53 26 10 Core Hits 60 | 4 25 28 3 Critical Kills . | . . . . Critical Parts Destroyed . | . . . . Critical Strikes 9 | 2 6 1 . Burn 9 | 2 6 1 . Melee Attacks 4 | . . 4 . Impact . | . . . . Slashing 4 | . . 4 . Piercing . | . . . . Sneak Attacks . | . . . . Combat Hostiles . | . . . . Follow-up Attacks . | . . . . Damage Inflicted 2108 | 184 938 830 156 Guns 1268 | 184 682 246 156 Cannons . | . . . . Explosions 816 | . 232 584 . Melee . | . . . . Ramming . | . . . . Kinetic 472 | 97 318 . 57 Thermal 701 | 87 388 150 76 Explosive 816 | . 232 584 . Electromagnetic 119 | . . 96 23 Impact . | . . . . Slashing . | . . . . Piercing . | . . . . Highest Corruption . | . . . . Average Corruption . | . . . . Corruption Purged . | . . . . Corruption Blocked . | . . . . Overload Shots . | . . . . Overflow Damage 24 | . . 24 . Projectiles . | . . . . Explosions 24 | . . 24 . Melee . | . . . . Knockbacks . | . . . . Impact . | . . . . Kinetic . | . . . . Secondary . | . . . . Self-Inflicted Damage 113 | . 26 87 . Shots 4 | . 1 3 . Rammed 1 | 1 . . . Targets Rammed 1 | 1 . . . Kicked . | . . . . Crushed . | . . . . Highest Temperature 141 | 63 141 . 108 Average Temperature 30 | 23 29 . 42 Received Heat Transfer 420 | . 207 162 51 Siege Activations . | . . . . Martial Activations . | . . . . Shielding Activations . | . . . . Robots Disrupted . | . . . . Combat Hostiles . | . . . . Robots Corrupted . | . . . . Combat Hostiles . | . . . . Parts Fried . | . . . . Impact Corruptions . | . . . . Robots Melted . | . . . . Combat Hostiles . | . . . . Parts Melted 7 | . 5 2 . Heat Transferred 2714 | 407 1567 518 222 Parts Sabotaged . | . . . . Parts Stolen . | . . . . Parts Stripped . | . . . . Power Chain Reactions . | . . . . Alert | -11 -10 -10 -9 ------- Run | Yrd Mat Sub Rec Maximum Alert Level . | . . . . Low Security (%) 100 | 100 100 . 100 Level 1 . | . . . . Level 2 . | . . . . Level 3 . | . . . . Level 4 . | . . . . Level 5 . | . . . . High Security . | . . . . Max Security . | . . . . Peak Influence 197 | 10 197 . 101 Initial 81 | . . . 81 Average 40 | . 49 . 60 Influence Increases 982 | 20 351 590 21 Destroy 0b10 Robot/C 360 | . 180 160 20 Destroy 0b10 Robot/NC 45 | 20 25 . . Destroy Leader 56 | . 46 10 . Successful Hack 30 | . 30 . . Disable Machine 30 | . 30 . . Destroy Structure 26 | . 25 . 1 Lose Combat Pursuer 435 | . 15 420 . Influence Decreases 982 | 20 351 420 191 Entered New Map 89 | . . . 89 Time Decay 682 | 20 202 380 80 Lost Part 62 | . . 40 22 Purge Threat 149 | . 149 . . Squads Dispatched 2 | . 2 . . Investigation 1 | . 1 . . Extermination . | . . . . Reinforcement 1 | . 1 . . Assault . | . . . . Garrison . | . . . . Intercept . | . . . . Searches Triggered . | . . . . Construction Impeded . | . . . . Haulers Reinforced . | . . . . Active Scanning Responses . | . . . . Cargo Convoy Interrupts . | . . . . Stealth | -11 -10 -10 -9 --------- Run | Yrd Mat Sub Rec Distress Signals 1 | . 1 . . Communications Jammed . | . . . . Distress Signals . | . . . . Times Spotted 41 | . 17 20 4 Peak Tracking Total 5 | . 5 4 3 Tactical Retreats 5 | . 1 4 . Traps | -11 -10 -10 -9 ------- Run | Yrd Mat Sub Rec Traps Triggered 1 | . 1 . . Indirectly . | . . . . Trap Hack Attempts . | . . . . Triggered . | . . . . Disarmed . | . . . . Reprogrammed . | . . . . Reused . | . . . . Traps Extracted . | . . . . Installed . | . . . . Triggered . | . . . . Machines | -11 -10 -10 -9 ---------- Run | Yrd Mat Sub Rec Machines Disabled 6 | . 2 4 . Max in Single Turn 1 | . 1 1 . Machines Repaired . | . . . . Machines Dismantled . | . . . . Machines Sabotaged . | . . . . Overloaded Fab Kills . | . . . . Hacking | -11 -10 -10 -9 --------- Run | Yrd Mat Sub Rec Machines Accessed 7 | . 5 2 . Terminals 5 | . 5 . . Fabricators . | . . . . Repair Stations . | . . . . Recycling Units . | . . . . Scanalyzers . | . . . . Garrison Access . | . . . . Total Hacks 21 | . 18 3 . Successful 12 | . 9 3 . Failed 8 | . 8 . . Catastrophic 1 | . 1 . . Database Lockouts 1 | . 1 . . Manual 15 | . 15 . . Terminals 18 | . 18 . . Fabricators . | . . . . Repair Stations . | . . . . Recycling Units . | . . . . Scanalyzers . | . . . . Garrison Access . | . . . . Terminal Hacks 9 | . 6 3 . Record 1 | . . 1 . Part Schematic 1 | . 1 . . Robot Analysis 1 | . 1 . . Open Door 1 | . . 1 . Terminal Index 1 | . 1 . . Unreport Threat 2 | . 2 . . Hauler Manifests 1 | . 1 . . Release Object 1 | . . 1 . Fabricator Hacks . | . . . . Repair Station Hacks . | . . . . Recycling Unit Hacks . | . . . . Scanalyzer . | . . . . Garrison Access Hacks . | . . . . Unauthorized Hacks 3 | . 3 . . Terminals 3 | . 3 . . Botnet 3 | . 3 . . Fabricators . | . . . . Repair Stations . | . . . . Recycling Units . | . . . . Scanalyzers . | . . . . Garrison Access . | . . . . Data Cores Recovered . | . . . . Used . | . . . . Hacking Detections 5 | . 5 . . Full Trace Events . | . . . . Feedback Events . | . . . . Feedback Blocked . | . . . . Robot Schematics Acquired . | . . . . Robots Built . | . . . . Authchips . | . . . . Time . | . . . . Total Robot Build Rating . | . . . . Part Schematics Acquired 1 | . 1 . . Parts Built . | . . . . Authchips . | . . . . Time . | . . . . Total Part Build Rating . | . . . . Parts Repaired . | . . . . Time . | . . . . Parts Recycled . | . . . . Recycled Matter . | . . . . Retrieved Matter . | . . . . Retrieved Components . | . . . . Parts Scanalyzed . | . . . . Part Schematics Acquired . | . . . . Parts Damaged . | . . . . Bothacking | -11 -10 -10 -9 ------------ Run | Yrd Mat Sub Rec Used RIF Installer . | . . . . Robots Hacked . | . . . . Non-combat . | . . . . Combat . | . . . . Robot Hacks Applied . | . . . . Relay Couplers Released . | . . . . Fabnet Peak Effective % . | . . . . Robots Rewired . | . . . . Allies Hacked . | . . . . Hacks Repelled . | . . . . Allies | -11 -10 -10 -9 -------- Run | Yrd Mat Sub Rec Total Allies . | . . . . Largest Group . | . . . . Highest-Rated Group . | . . . . Highest-Rated Ally . | . . . . Total Orders . | . . . . Ally Attacks . | . . . . Total Damage . | . . . . Kills . | . . . . Allies Corrupted . | . . . . Allies Melted . | . . . . Intel | -11 -10 -10 -9 ------- Run | Yrd Mat Sub Rec Active Infowar (turns) 1925 | 10 584 1161 170 Sensors 11 | . . 11 . Structural 138 | . . 138 . Seismic 1776 | 10 584 1012 170 Robot Analysis Total 1 | . 1 . . Derelict Logs Recovered 1 | . . 1 . Drone Launches . | . . . . Drone Recoveries . | . . . . Exploration | -11 -10 -10 -9 ------------- Run | Yrd Mat Sub Rec Turns Passed 2688 | 291 946 1281 170 Spaces Moved 1161 | 327 306 469 59 Core 267 | 267 . . . Treads 894 | 60 306 469 59 Legs . | . . . . Wheels . | . . . . Hover . | . . . . Flight . | . . . . Fastest Speed 50 | 50 160 240 240 Average Speed 189 | 70 227 240 240 Slowest Speed 240 | 160 240 240 240 Overloaded Moves . | . . . . Propulsion Burnouts . | . . . . Robots Hopped . | . . . . Potential Cave-ins . | . . . . Cave-ins Triggered . | . . . . Exploration Rate (%) 28 | 9 46 36 24 Regions Visited 3 Branch Regions 2 Pre-discovered Areas 1 | . . 1 . Known Exits Taken . | . . . . Unknown Exits Taken 3 | 1 1 1 . Scrap Searched 2 | . . 2 . Spaces Dug 4 | . 4 . . Terrain Destroyed 89 | . 33 55 1 Melee . | . . . . Projectile 7 | . 6 . 1 AOE 82 | . 27 55 . Terrain Rammed . | . . . . Walls Destroyed . | . . . . Machines Disabled . | . . . . Actions | -11 -10 -10 -9 --------- Run | Yrd Mat Sub Rec Total 1413 | 362 402 574 75 Wait 29 | 5 9 15 . Move 1158 | 326 305 468 59 Hop . | . . . . Pick Up 36 | 9 14 13 . Fast Attach 3 | 3 . . . Attach 10 | 4 1 4 1 Detach . | . . . . Swap 23 | . 7 13 3 Drop 24 | 1 . 20 3 Fire 124 | 13 66 37 8 Melee 4 | . . 4 . Ram 1 | 1 . . . Kick . | . . . . Crush . | . . . . Escape Stasis . | . . . . Rewire . | . . . . Trap . | . . . . Miscellaneous 1 | . . . 1 Route ------- -11/Scrapyard -10/Materials (discovered 4 exits: [*Mat] / [*Min x2] / *Sub) -10/Subcaves (discovered 3 exits: [*Mat] / [*Rec] / [*Scr]) -9/Recycling History --------- Turn | Location | Event 17 | -11/Scrapyard | Discovered new exit (range 15) 292 | -11/Scrapyard | Entered Materials 311 | -10/Materials | Build established: Mutant 350 | -10/Materials | Discovered new exit (range 5) 703 | -10/Materials | Discovered new exit (range 10) 809 | -10/Materials | Discovered new exit (range 12) 1071 | -10/Materials | Central database locked down 1232 | -10/Materials | Discovered new exit (range 3) 1238 | -10/Materials | Entered Subcaves 1239 | -10/Subcaves | Approached by a straggling Scientist 1269 | -10/Subcaves | A swath of the cavern ceiling suddenly collapsed 1366 | -10/Subcaves | Scientist uncovered a shortcut to Scraptown 1604 | -10/Subcaves | Discovered new exit (range 16) 1884 | -10/Subcaves | Core integrity fell below 50% 2222 | -10/Subcaves | Discovered new exit (range 9) 2276 | -10/Subcaves | Learned location of Zion (-7) 2315 | -10/Subcaves | Found SUBCON Basin 2519 | -10/Subcaves | Entered Recycling 2679 | -9/Recycling | Core integrity fell below 20% 2680 | -9/Recycling | Released subatomizers from SUBCON Basin 2680 | -9/Recycling | Angered Scraplab inhabitants 2689 | -9/Recycling | Destroyed by G-34 Mercenary with Small Laser Last Messages --------------- Subatomizers dissect the Corrupted Sub. Laser. Subatomizers dissect the Lgt. Cannon. LOCATION=UNKNOWN GOAL=ESCAPE Y-45 Defender springs to life. Y-45 Defender destroyed. Dropped Lgt. Treads. Dropped Ion Engine. Acquired 54 matter. H-55 Commando springs to life. Penetrated by Slug. L-31 Rogue springs to life. EM Pulse Gun destroyed. Slug penetrates Wall. Dropped SUBCON Basin. Released subatomizers from SUBCON Basin. Slug penetrates Wall. U-05 Engineer builds a Wall. Lgt. Treads destroyed. Sub. Machine Gun destroyed. Map ----- +----------------------------------------------------+ | ?????????????????????????????????????????????????? | | ?????????????????????????????????????????????????? | | ?????????????????????????????????????????????????? | | ?????????????????????????????????????????????????? | | ?????????????????????????????????????????????????? | | ?????????????????????????????????????????????????? | | ?????????????????????????????????????????????????? | | ?????????????????????????????????????????????????? | | ?????????????????????????????????????????????????? | | ?????????????????????????????????????????????????? | | ?????????????????????????????????????????????????? | | ?????????????????????#???????????????????????????? | | ?????????????????????# ????????????????????????? | | ?????????????????????# ##########??????????????? | | ?????????????????????# # #??????????????? | | ?????????????????????# # / #??????????????? | | ?????????????????????# #% % #??????????????? | | ?????????????????????# # ! #??????????????? | | ?????????????????????+ + ! =#??????????????? | | ?????????????????????# #= =???????????????? | | ?????????????????????# # ??##########?????? | | ?????????????????????# # !???# #?????? | | ?????????????????????# g# h ????# #?????? | | ?????????????????????# ##;##????# #?????? | | ?????????????????????# & ##????# #?????? | | ????????????########?# @lr##????# #?????? | | ????????????# ! # #?????# ##????? | | ????????????# # #?????# #????? | | ????????????# !!!+ ####### #?????? | | ????????????# ! !!!# + #?????? | | ????????????# ! ! ! !# ####### ##?????? | | ????????????# ! ?# #??????????????? | | ????????????# ! ?# """ """ #???######?????? | | ????????????# ! ??# """ """ ##?? #?????? | | ????????????# ??# """ """ #? [ #?????? | | ????????????######???# #? ]= %#?????? | | ?????????????????????# # ! #?????? | | ?????????????????????##+######## # [ #?????? | | ?????????????????????% ?????# + ] #?????? | | ??????????????????? ???# # #?????? | | ????????????????? [ ###= #% % #?????? | | ????????????????# % ## [ #? #?????? | | ????????????????# ! % ###* #? ! #?????? | | ????????????????# !! #?# #?? #?????? | | ????????????????# ! #?#####??######?????? | | ????????????????# ! #???????????????????? | | ????????????????# ! #???????????????????? | | ????????????????# !#???????????????????? | | ????????????????# ! #???????????????????? | | ????????????????# #???????????????????? | +----------------------------------------------------+ Best States ------------- Heat Dissipation 25 Energy Generation 12 Energy Capacity 265 Matter Stores 300 Matter Capacity 300 Sight Range 16 Robot Scan Range 14 Terrain Scan Density 10 Core Shielding 20 Evasion (%) 50 Recoil Reduction 2 Item Schematics ----------------- Huge Storage Unit | -10/Materials | Hacked Robot Schematics ------------------ None Fabricated ------------ Nothing Repaired ---------- Nothing Alien Tech Used ----------------- None Achievements -------------- None Challenges ------------ None Game ------ Seed MomentumFlightMeganuke Manual? 0 Play Time 00:21:47 Cumulative 28.3 hours Start 2025.07.25 @ 20:54:43 End 2025.07.26 @ 16:39:32 Sessions 6 Manual Loads 0 Difficulty Rogue Special Mode None Game No. 20 Rogue 20 Adventurer 0 Explorer 0 Win Type - Total 1 Types 1/0/0/0/0/0/0/0/0/0 Lore% 45 Gallery% 28 Achievement% 31 Wizard Run 0 Options --------- Layout 1 ASCII 0 Keyboard 0 Movement Mouse Keybinds 0 Fullscreen 1 Font 24/Smallcaps Map View 50x35 Zoom Use 0% Tactical HUD 0 Map Filters NONE Filters NONE Steam 1 RUN: 427edeec-ea36-45d9-ab92-258efe22616d